[Event "Titled Tuesday Blitz September 27 Early 2022"]
[White "Player, Edmund C"]
[Black "Ovezdurdyyeva, Jemal"]
[WhiteFideId "406520"]
[BlackFideId "14001888"]
[WhiteElo "2092"]
[BlackElo "1946"]
[Result "0-1"]
[Round "10"]
[TimeControl "180+1"]
[Date "2022.09.27"]
[WhiteClock "0:00:23"]
[BlackClock "0:00:28"]

1. e4 {[%clk 0:03:00]}  d6 {[%clk 0:02:52]} 2. d4 {[%clk 0:02:59]}  Nf6 {[%clk 0:02:52]} 3. Nc3 {[%clk 0:02:59]}  g6 {[%clk 0:02:53]} 4. Nf3 {[%clk 0:02:57]}  Bg7 {[%clk 0:02:52]} 5. Be2 {[%clk 0:02:57]}  c6 {[%clk 0:02:48]} 6. O-O {[%clk 0:02:52]}  O-O {[%clk 0:02:48]} 7. Bf4 {[%clk 0:02:44]}  b5 {[%clk 0:02:46]} 8. a3 {[%clk 0:02:37]}  a5 {[%clk 0:02:45]} 9. e5 {[%clk 0:02:16]}  Ne8 {[%clk 0:02:38]} 10. Qc1 {[%clk 0:02:08]}  Nd7 {[%clk 0:02:27]} 11. Re1 {[%clk 0:01:53]}  Bb7 {[%clk 0:02:17]} 12. b4 {[%clk 0:01:38]}  Nb6 {[%clk 0:01:26]} 13. Bh6 {[%clk 0:01:23]}  Nc4 {[%clk 0:00:59]} 14. Bxc4 {[%clk 0:01:21]}  bxc4 {[%clk 0:00:59]} 15. Bxg7 {[%clk 0:01:16]}  Nxg7 {[%clk 0:00:58]} 16. Qe3 {[%clk 0:01:02]}  Nf5 {[%clk 0:00:50]} 17. Qf4 {[%clk 0:00:56]}  axb4 {[%clk 0:00:34]} 18. axb4 {[%clk 0:00:55]}  Qb6 {[%clk 0:00:32]} 19. g4 {[%clk 0:00:50]}  Ng7 {[%clk 0:00:31]} 20. Qh6 {[%clk 0:00:48]}  f6 {[%clk 0:00:31]} 21. exf6 {[%clk 0:00:46]}  exf6 {[%clk 0:00:30]} 22. Re7 {[%clk 0:00:45]}  Rxa1+ {[%clk 0:00:29]} 23. Kg2 {[%clk 0:00:43]}  Rf7 {[%clk 0:00:29]} 24. Rxf7 {[%clk 0:00:29]}  Kxf7 {[%clk 0:00:29]} 25. Ne4 {[%clk 0:00:29]}  c5 {[%clk 0:00:25]} 26. Neg5+ {[%clk 0:00:20]}  fxg5 {[%clk 0:00:24]} 27. Qxh7 {[%clk 0:00:19]}  Qc6 {[%clk 0:00:21]} 28. Qh3 {[%clk 0:00:18]}  Qxf3+ {[%clk 0:00:20]} 29. Qxf3+ {[%clk 0:00:19]}  Bxf3+ {[%clk 0:00:21]} 30. Kxf3 {[%clk 0:00:20]}  cxb4 {[%clk 0:00:21]} 31. Ke4 {[%clk 0:00:21]}  b3 {[%clk 0:00:22]} 32. Kd5 {[%clk 0:00:22]}  bxc2 {[%clk 0:00:22]} 33. f4 {[%clk 0:00:23]}  c1=Q {[%clk 0:00:22]} 34. fxg5 {[%clk 0:00:24]}  Qxg5+ {[%clk 0:00:21]} 35. Kxd6 {[%clk 0:00:24]}  Qxg4 {[%clk 0:00:22]} 36. d5 {[%clk 0:00:24]}  Rd1 {[%clk 0:00:23]} 37. Kc5 {[%clk 0:00:25]}  Qd4+ {[%clk 0:00:23]} 38. Kb4 {[%clk 0:00:25]}  Qxd5 {[%clk 0:00:24]} 39. h4 {[%clk 0:00:25]}  c3 {[%clk 0:00:25]} 40. h5 {[%clk 0:00:25]}  c2 {[%clk 0:00:26]} 41. hxg6+ {[%clk 0:00:24]}  Kf6 {[%clk 0:00:27]} 42. Kc3 {[%clk 0:00:24]}  Rd3+ {[%clk 0:00:27]} 43. Kb2 {[%clk 0:00:24]}  c1=Q+ {[%clk 0:00:27]} 44. Kxc1 {[%clk 0:00:23]}  Qc4+ {[%clk 0:00:27]} 45. Kb2 {[%clk 0:00:23]}  Rb3+ {[%clk 0:00:28]} 46. Ka1 {[%clk 0:00:23]}  Qa4# {[%clk 0:00:28]} 0-1


[Site "https://www.chess.com"]

[Event "Titled Tuesday Blitz September 27 Early 2022"]
[White "Poltorak, Sebastian"]
[Black "Sztokbant, Bernardo Vainzoff"]
[WhiteFideId "1199498"]
[BlackFideId "2115956"]
[WhiteElo "2104"]
[BlackElo "2172"]
[Result "1-0"]
[Round "10"]
[TimeControl "180+1"]
[Date "2022.09.27"]
[WhiteClock "0:00:05"]
[BlackClock "0:00:02"]

1. e4 {[%clk 0:03:00]}  c5 {[%clk 0:02:59]} 2. Nf3 {[%clk 0:02:52]}  e6 {[%clk 0:02:58]} 3. g3 {[%clk 0:02:50]}  Nc6 {[%clk 0:02:58]} 4. Bg2 {[%clk 0:02:47]}  d5 {[%clk 0:02:58]} 5. exd5 {[%clk 0:02:46]}  exd5 {[%clk 0:02:59]} 6. d4 {[%clk 0:02:46]}  Nf6 {[%clk 0:02:59]} 7. O-O {[%clk 0:02:42]}  Be7 {[%clk 0:02:59]} 8. dxc5 {[%clk 0:02:38]}  O-O {[%clk 0:03:00]} 9. Be3 {[%clk 0:02:32]}  Ne4 {[%clk 0:02:55]} 10. Nc3 {[%clk 0:02:27]}  Nxc3 {[%clk 0:02:54]} 11. bxc3 {[%clk 0:02:28]}  Qa5 {[%clk 0:02:54]} 12. Qxd5 {[%clk 0:02:22]}  Qxc3 {[%clk 0:02:52]} 13. Qe4 {[%clk 0:02:03]}  g6 {[%clk 0:02:41]} 14. Nd4 {[%clk 0:01:56]}  Nxd4 {[%clk 0:02:16]} 15. Bxd4 {[%clk 0:01:54]}  Qc4 {[%clk 0:02:16]} 16. Qd3 {[%clk 0:01:27]}  Be6 {[%clk 0:01:57]} 17. Qxc4 {[%clk 0:01:23]}  Bxc4 {[%clk 0:01:58]} 18. Rfe1 {[%clk 0:01:23]}  Bg5 {[%clk 0:01:37]} 19. Bxb7 {[%clk 0:01:21]}  Rad8 {[%clk 0:01:37]} 20. Be5 {[%clk 0:01:16]}  f6 {[%clk 0:01:19]} 21. Bd6 {[%clk 0:01:13]}  Rf7 {[%clk 0:01:18]} 22. Bg2 {[%clk 0:01:07]}  Bd2 {[%clk 0:01:15]} 23. Re7 {[%clk 0:01:05]}  a5 {[%clk 0:00:58]} 24. Rd1 {[%clk 0:01:02]}  Bb4 {[%clk 0:00:56]} 25. Rxf7 {[%clk 0:00:54]}  Kxf7 {[%clk 0:00:55]} 26. Bd5+ {[%clk 0:00:52]}  Bxd5 {[%clk 0:00:54]} 27. Rxd5 {[%clk 0:00:53]}  Ke6 {[%clk 0:00:52]} 28. Rd4 {[%clk 0:00:51]}  f5 {[%clk 0:00:49]} 29. f4 {[%clk 0:00:41]}  Rc8 {[%clk 0:00:48]} 30. Kf2 {[%clk 0:00:30]}  Bxc5 {[%clk 0:00:41]} 31. Bxc5 {[%clk 0:00:30]}  Rxc5 {[%clk 0:00:42]} 32. c4 {[%clk 0:00:30]}  Rc8 {[%clk 0:00:39]} 33. Ke3 {[%clk 0:00:30]}  Rb8 {[%clk 0:00:39]} 34. Rd2 {[%clk 0:00:30]}  Rb4 {[%clk 0:00:38]} 35. Kd4 {[%clk 0:00:29]}  Kd6 {[%clk 0:00:37]} 36. Re2 {[%clk 0:00:25]}  Ra4 {[%clk 0:00:33]} 37. Rb2 {[%clk 0:00:23]}  Kc6 {[%clk 0:00:29]} 38. Rb8 {[%clk 0:00:17]}  Rxa2 {[%clk 0:00:28]} 39. Rc8+ {[%clk 0:00:17]}  Kb7 {[%clk 0:00:18]} 40. Rh8 {[%clk 0:00:15]}  Rxh2 {[%clk 0:00:18]} 41. Kc5 {[%clk 0:00:12]}  Rh3 {[%clk 0:00:15]} 42. Kb5 {[%clk 0:00:08]}  a4 {[%clk 0:00:15]} 43. Kxa4 {[%clk 0:00:07]}  Rxg3 {[%clk 0:00:15]} 44. Kb5 {[%clk 0:00:06]}  Rb3+ {[%clk 0:00:11]} 45. Kc5 {[%clk 0:00:06]}  h5 {[%clk 0:00:12]} 46. Rh6 {[%clk 0:00:05]}  Rg3 {[%clk 0:00:11]} 47. Rh7+ {[%clk 0:00:05]}  Ka6 {[%clk 0:00:10]} 48. Kc6 {[%clk 0:00:05]}  Rg4 {[%clk 0:00:07]} 49. Rh8 {[%clk 0:00:05]}  Ka5 {[%clk 0:00:04]} 50. c5 {[%clk 0:00:06]}  Rxf4 {[%clk 0:00:03]} 51. Ra8+ {[%clk 0:00:06]}  Kb4 {[%clk 0:00:03]} 52. Rb8+ {[%clk 0:00:07]}  Kc4 {[%clk 0:00:03]} 53. Rg8 {[%clk 0:00:04]}  Rg4 {[%clk 0:00:02]} 54. Ra8 {[%clk 0:00:05]}  Kd3 {[%clk 0:00:02]} 55. Kd6 {[%clk 0:00:03]}  h4 {[%clk 0:00:02]} 56. c6 {[%clk 0:00:03]}  Rd4+ {[%clk 0:00:01]} 57. Ke5 {[%clk 0:00:03]}  Rc4 {[%clk 0:00:02]} 58. Ra3+ {[%clk 0:00:02]}  Kc2 {[%clk 0:00:02]} 59. Kd5 {[%clk 0:00:02]}  Rc3 {[%clk 0:00:02]} 60. Rxc3+ {[%clk 0:00:03]}  Kxc3 {[%clk 0:00:02]} 61. c7 {[%clk 0:00:03]}  h3 {[%clk 0:00:03]} 62. c8=Q+ {[%clk 0:00:04]}  Kd2 {[%clk 0:00:03]} 63. Qh8 {[%clk 0:00:05]}  h2 {[%clk 0:00:02]} 64. Qxh2+ {[%clk 0:00:05]} 1-0


[Site "https://www.chess.com"]

[Event "Titled Tuesday Blitz September 27 Early 2022"]
[White "Przybylski, Wojciech"]
[Black "Navarrete Mendez, Gonzalo Alberto"]
[WhiteFideId "1117599"]
[BlackFideId "5106850"]
[WhiteElo "2133"]
[BlackElo "2261"]
[Result "1-0"]
[Round "10"]
[TimeControl "180+1"]
[Date "2022.09.27"]
[WhiteClock "0:00:07"]
[BlackClock "0:00:04"]

1. e4 {[%clk 0:03:00]}  e5 {[%clk 0:02:59]} 2. Nf3 {[%clk 0:02:59]}  Nc6 {[%clk 0:03:00]} 3. Bb5 {[%clk 0:02:54]}  a6 {[%clk 0:02:58]} 4. Ba4 {[%clk 0:02:54]}  d6 {[%clk 0:02:57]} 5. h3 {[%clk 0:02:54]}  Bd7 {[%clk 0:02:53]} 6. c3 {[%clk 0:02:53]}  Nge7 {[%clk 0:02:53]} 7. O-O {[%clk 0:02:53]}  Ng6 {[%clk 0:02:53]} 8. Re1 {[%clk 0:02:49]}  Be7 {[%clk 0:02:53]} 9. d4 {[%clk 0:02:49]}  O-O {[%clk 0:02:52]} 10. Be3 {[%clk 0:02:44]}  f5 {[%clk 0:02:40]} 11. exf5 {[%clk 0:02:44]}  Bxf5 {[%clk 0:02:41]} 12. Bxc6 {[%clk 0:02:41]}  bxc6 {[%clk 0:02:40]} 13. dxe5 {[%clk 0:02:41]}  Qd7 {[%clk 0:02:36]} 14. Kh2 {[%clk 0:02:26]}  h6 {[%clk 0:01:53]} 15. Na3 {[%clk 0:01:37]}  Rf7 {[%clk 0:01:47]} 16. Nc4 {[%clk 0:01:29]}  Raf8 {[%clk 0:01:39]} 17. b4 {[%clk 0:01:03]}  Bxh3 {[%clk 0:01:33]} 18. Nd4 {[%clk 0:00:42]}  Bxg2 {[%clk 0:01:00]} 19. e6 {[%clk 0:00:35]}  Qc8 {[%clk 0:00:52]} 20. exf7+ {[%clk 0:00:24]}  Rxf7 {[%clk 0:00:51]} 21. Kxg2 {[%clk 0:00:23]}  d5 {[%clk 0:00:41]} 22. Qh5 {[%clk 0:00:20]}  Nh4+ {[%clk 0:00:38]} 23. Kf1 {[%clk 0:00:19]}  dxc4 {[%clk 0:00:35]} 24. Ke2 {[%clk 0:00:18]}  Rf5 {[%clk 0:00:32]} 25. Nxf5 {[%clk 0:00:16]}  Nxf5 {[%clk 0:00:33]} 26. Rad1 {[%clk 0:00:15]}  Qe6 {[%clk 0:00:32]} 27. Kd2 {[%clk 0:00:14]}  Qf6 {[%clk 0:00:27]} 28. Qe2 {[%clk 0:00:12]}  Bxb4 {[%clk 0:00:27]} 29. Rc1 {[%clk 0:00:12]}  Ba3 {[%clk 0:00:25]} 30. Qxc4+ {[%clk 0:00:09]}  Kh8 {[%clk 0:00:25]} 31. Rcd1 {[%clk 0:00:09]}  Nd6 {[%clk 0:00:25]} 32. Qd3 {[%clk 0:00:09]}  Qe6 {[%clk 0:00:23]} 33. Ra1 {[%clk 0:00:08]}  Ne4+ {[%clk 0:00:22]} 34. Kc2 {[%clk 0:00:08]}  Nf6 {[%clk 0:00:15]} 35. Bd4 {[%clk 0:00:08]}  Qf7 {[%clk 0:00:07]} 36. Bxf6 {[%clk 0:00:08]}  Qxf6 {[%clk 0:00:08]} 37. Re8+ {[%clk 0:00:07]}  Bf8 {[%clk 0:00:07]} 38. Rf1 {[%clk 0:00:06]}  Qf7 {[%clk 0:00:06]} 39. Rxf8+ {[%clk 0:00:06]}  Qxf8 {[%clk 0:00:07]} 40. Qe4 {[%clk 0:00:06]}  Qf7 {[%clk 0:00:07]} 41. Kb2 {[%clk 0:00:06]}  Qf8 {[%clk 0:00:04]} 42. f4 {[%clk 0:00:06]}  Qb8+ {[%clk 0:00:04]} 43. Ka1 {[%clk 0:00:06]}  Qb5 {[%clk 0:00:05]} 44. Re1 {[%clk 0:00:06]}  Kg8 {[%clk 0:00:03]} 45. Qe8+ {[%clk 0:00:06]}  Kh7 {[%clk 0:00:04]} 46. Qe4+ {[%clk 0:00:06]}  Kg8 {[%clk 0:00:04]} 47. f5 {[%clk 0:00:06]}  Qc5 {[%clk 0:00:04]} 48. Qe8+ {[%clk 0:00:06]}  Kh7 {[%clk 0:00:05]} 49. Qg6+ {[%clk 0:00:06]}  Kg8 {[%clk 0:00:04]} 50. Re8+ {[%clk 0:00:07]}  Qf8 {[%clk 0:00:05]} 51. Qe6+ {[%clk 0:00:07]}  Kh7 {[%clk 0:00:04]} 52. Rxf8 {[%clk 0:00:07]} 1-0


[Site "https://www.chess.com"]

[Event "Titled Tuesday Blitz September 27 Early 2022"]
[White "Pultinevicius, Paulius"]
[Black "Wirig, Anthony"]
[WhiteFideId "12809390"]
[BlackFideId "615013"]
[WhiteElo "2472"]
[BlackElo "2474"]
[Result "0-1"]
[Round "10"]
[TimeControl "180+1"]
[Date "2022.09.27"]
[WhiteClock "0:00:10"]
[BlackClock "0:00:14"]

1. d4 {[%clk 0:03:00]}  Nf6 {[%clk 0:02:57]} 2. c4 {[%clk 0:02:55]}  e6 {[%clk 0:02:57]} 3. Nf3 {[%clk 0:02:54]}  Bb4+ {[%clk 0:02:57]} 4. Bd2 {[%clk 0:02:54]}  Bxd2+ {[%clk 0:02:57]} 5. Qxd2 {[%clk 0:02:54]}  d5 {[%clk 0:02:58]} 6. Nc3 {[%clk 0:02:54]}  O-O {[%clk 0:02:58]} 7. e3 {[%clk 0:02:54]}  Qe7 {[%clk 0:02:58]} 8. Be2 {[%clk 0:02:52]}  Rd8 {[%clk 0:02:59]} 9. Qc2 {[%clk 0:02:31]}  dxc4 {[%clk 0:02:50]} 10. Bxc4 {[%clk 0:02:32]}  c5 {[%clk 0:02:50]} 11. dxc5 {[%clk 0:02:33]}  Qxc5 {[%clk 0:02:50]} 12. Bd3 {[%clk 0:02:33]}  Nc6 {[%clk 0:02:44]} 13. a3 {[%clk 0:02:32]}  Ne5 {[%clk 0:02:26]} 14. Nxe5 {[%clk 0:02:28]}  Qxe5 {[%clk 0:02:27]} 15. O-O {[%clk 0:02:26]}  Bd7 {[%clk 0:01:34]} 16. Rad1 {[%clk 0:02:00]}  Ng4 {[%clk 0:01:25]} 17. g3 {[%clk 0:01:58]}  Qh5 {[%clk 0:01:24]} 18. h4 {[%clk 0:01:57]}  Ne5 {[%clk 0:01:14]} 19. Be4 {[%clk 0:01:55]}  Bc6 {[%clk 0:00:57]} 20. Kg2 {[%clk 0:01:51]}  Qf5 {[%clk 0:00:40]} 21. Qb1 {[%clk 0:01:35]}  Bxe4+ {[%clk 0:00:31]} 22. Qxe4 {[%clk 0:01:35]}  Qxe4+ {[%clk 0:00:30]} 23. Nxe4 {[%clk 0:01:36]}  Kf8 {[%clk 0:00:30]} 24. Rc1 {[%clk 0:01:17]}  Rac8 {[%clk 0:00:27]} 25. b3 {[%clk 0:01:09]}  Ke7 {[%clk 0:00:25]} 26. f4 {[%clk 0:00:54]}  Ng4 {[%clk 0:00:21]} 27. Rce1 {[%clk 0:00:14]}  Rd3 {[%clk 0:00:18]} 28. f5 {[%clk 0:00:04]}  Nxe3+ {[%clk 0:00:15]} 29. Rxe3 {[%clk 0:00:05]}  Rxe3 {[%clk 0:00:15]} 30. f6+ {[%clk 0:00:05]}  gxf6 {[%clk 0:00:15]} 31. Nxf6 {[%clk 0:00:06]}  Rc2+ {[%clk 0:00:13]} 32. Kh3 {[%clk 0:00:07]}  Rcc3 {[%clk 0:00:13]} 33. Nxh7 {[%clk 0:00:08]}  Rxg3+ {[%clk 0:00:12]} 34. Kh2 {[%clk 0:00:08]}  Rh3+ {[%clk 0:00:13]} 35. Kg2 {[%clk 0:00:09]}  Rcg3+ {[%clk 0:00:11]} 36. Kf2 {[%clk 0:00:09]}  Rf3+ {[%clk 0:00:11]} 37. Kg2 {[%clk 0:00:09]}  Rxf1 {[%clk 0:00:12]} 38. Kxh3 {[%clk 0:00:10]}  Rf3+ {[%clk 0:00:12]} 39. Kg4 {[%clk 0:00:10]}  Rxb3 {[%clk 0:00:12]} 40. Ng5 {[%clk 0:00:11]}  f6 {[%clk 0:00:13]} 41. Nf3 {[%clk 0:00:10]}  Rxa3 {[%clk 0:00:13]} 42. h5 {[%clk 0:00:10]}  Kf7 {[%clk 0:00:14]} 0-1


[Site "https://www.chess.com"]

[Event "Titled Tuesday Blitz September 27 Early 2022"]
[White "Ravi, Thandalam Shanmugam"]
[Black "Thiel, Thomas"]
[WhiteFideId "5000238"]
[BlackFideId "4615964"]
[WhiteElo "2063"]
[BlackElo "2216"]
[Result "1-0"]
[Round "10"]
[TimeControl "180+1"]
[Date "2022.09.27"]
[WhiteClock "0:01:02"]
[BlackClock "0:00:25"]

1. e4 {[%clk 0:03:00]}  d5 {[%clk 0:02:57]} 2. exd5 {[%clk 0:03:00]}  Nf6 {[%clk 0:02:57]} 3. d4 {[%clk 0:03:00]}  Nxd5 {[%clk 0:02:56]} 4. Nf3 {[%clk 0:02:59]}  g6 {[%clk 0:02:56]} 5. Be2 {[%clk 0:02:59]}  Bg7 {[%clk 0:02:56]} 6. O-O {[%clk 0:02:59]}  O-O {[%clk 0:02:56]} 7. c4 {[%clk 0:03:00]}  Nb6 {[%clk 0:02:55]} 8. b3 {[%clk 0:03:01]}  Nc6 {[%clk 0:02:52]} 9. Bb2 {[%clk 0:03:01]}  Bg4 {[%clk 0:02:49]} 10. Na3 {[%clk 0:02:44]}  Bxf3 {[%clk 0:02:45]} 11. Bxf3 {[%clk 0:02:45]}  Nxd4 {[%clk 0:02:44]} 12. Bxb7 {[%clk 0:02:44]}  Rb8 {[%clk 0:02:42]} 13. Be4 {[%clk 0:02:40]}  c5 {[%clk 0:02:08]} 14. Rb1 {[%clk 0:02:29]}  a6 {[%clk 0:02:06]} 15. Nc2 {[%clk 0:02:28]}  e5 {[%clk 0:02:02]} 16. Nxd4 {[%clk 0:02:20]}  exd4 {[%clk 0:01:57]} 17. Qf3 {[%clk 0:02:15]}  Qf6 {[%clk 0:01:53]} 18. Qxf6 {[%clk 0:02:12]}  Bxf6 {[%clk 0:01:54]} 19. Rfe1 {[%clk 0:02:12]}  Rfe8 {[%clk 0:01:53]} 20. Bc6 {[%clk 0:02:12]}  Rxe1+ {[%clk 0:01:49]} 21. Rxe1 {[%clk 0:02:13]}  a5 {[%clk 0:01:37]} 22. Ba3 {[%clk 0:02:09]}  Rc8 {[%clk 0:01:30]} 23. Bb7 {[%clk 0:02:08]}  Rc7 {[%clk 0:01:30]} 24. Re8+ {[%clk 0:02:07]}  Kg7 {[%clk 0:01:28]} 25. Be4 {[%clk 0:02:06]}  a4 {[%clk 0:01:25]} 26. Rb8 {[%clk 0:02:02]}  axb3 {[%clk 0:01:14]} 27. Rxb6 {[%clk 0:01:32]}  bxa2 {[%clk 0:01:12]} 28. Bb2 {[%clk 0:01:31]}  Ra7 {[%clk 0:01:08]} 29. Ba1 {[%clk 0:01:31]}  Re7 {[%clk 0:00:57]} 30. f3 {[%clk 0:01:30]}  Be5 {[%clk 0:00:56]} 31. Ra6 {[%clk 0:01:28]}  f5 {[%clk 0:00:55]} 32. Bd3 {[%clk 0:01:26]}  Bf4 {[%clk 0:00:40]} 33. Rxa2 {[%clk 0:01:26]}  Re3 {[%clk 0:00:39]} 34. Bf1 {[%clk 0:01:21]}  Rb3 {[%clk 0:00:33]} 35. g3 {[%clk 0:01:13]}  Be3+ {[%clk 0:00:33]} 36. Kg2 {[%clk 0:01:13]}  Rb1 {[%clk 0:00:33]} 37. Bb2 {[%clk 0:01:07]}  Kh6 {[%clk 0:00:31]} 38. Ba3 {[%clk 0:01:06]}  Rd1 {[%clk 0:00:25]} 39. Bxc5 {[%clk 0:01:02]} 1-0


[Site "https://www.chess.com"]

[Event "Titled Tuesday Blitz September 27 Early 2022"]
[White "Rivas Garcia, Victor"]
[Black "Jaskolka, Tomasz"]
[WhiteFideId "2217740"]
[BlackFideId "1170791"]
[WhiteElo "2322"]
[BlackElo "2073"]
[Result "0-1"]
[Round "10"]
[TimeControl "180+1"]
[Date "2022.09.27"]
[WhiteClock "0:00:51"]
[BlackClock "0:01:08"]

1. e4 {[%clk 0:03:00]}  c5 {[%clk 0:02:44]} 2. Nc3 {[%clk 0:03:00]}  e6 {[%clk 0:02:43]} 3. Nge2 {[%clk 0:02:58]}  Nc6 {[%clk 0:02:44]} 4. g3 {[%clk 0:02:58]}  Nf6 {[%clk 0:02:42]} 5. Bg2 {[%clk 0:02:58]}  d5 {[%clk 0:02:41]} 6. exd5 {[%clk 0:02:56]}  exd5 {[%clk 0:02:41]} 7. d4 {[%clk 0:02:56]}  cxd4 {[%clk 0:02:39]} 8. Nxd4 {[%clk 0:02:56]}  Bg4 {[%clk 0:02:39]} 9. Qd3 {[%clk 0:02:47]}  Bc5 {[%clk 0:02:24]} 10. Be3 {[%clk 0:02:45]}  Nxd4 {[%clk 0:02:18]} 11. Bxd4 {[%clk 0:02:43]}  Qe7+ {[%clk 0:02:18]} 12. Kd2 {[%clk 0:02:25]}  O-O {[%clk 0:02:09]} 13. Rae1 {[%clk 0:02:24]}  Qd6 {[%clk 0:02:05]} 14. Kc1 {[%clk 0:02:18]}  a6 {[%clk 0:01:59]} 15. f4 {[%clk 0:01:56]}  Rfe8 {[%clk 0:01:54]} 16. Bxf6 {[%clk 0:01:52]}  Qxf6 {[%clk 0:01:49]} 17. Nxd5 {[%clk 0:01:52]}  Qd6 {[%clk 0:01:44]} 18. h3 {[%clk 0:01:45]}  Be6 {[%clk 0:01:42]} 19. f5 {[%clk 0:01:38]}  Bxd5 {[%clk 0:01:42]} 20. Bxd5 {[%clk 0:01:37]}  Red8 {[%clk 0:01:38]} 21. c4 {[%clk 0:01:37]}  b5 {[%clk 0:01:38]} 22. Rd1 {[%clk 0:01:32]}  bxc4 {[%clk 0:01:38]} 23. Bxc4 {[%clk 0:01:32]}  Qh6+ {[%clk 0:01:37]} 24. Kb1 {[%clk 0:01:23]}  Rxd3 {[%clk 0:01:36]} 25. Rxd3 {[%clk 0:01:23]}  a5 {[%clk 0:01:32]} 26. Rd7 {[%clk 0:01:23]}  Qc6 {[%clk 0:01:24]} 27. Rhd1 {[%clk 0:01:15]}  Rf8 {[%clk 0:01:21]} 28. g4 {[%clk 0:01:08]}  h6 {[%clk 0:01:20]} 29. h4 {[%clk 0:01:08]}  Be3 {[%clk 0:01:20]} 30. b3 {[%clk 0:01:06]}  Bf2 {[%clk 0:01:17]} 31. g5 {[%clk 0:01:05]}  Bxh4 {[%clk 0:01:17]} 32. g6 {[%clk 0:01:05]}  Bf6 {[%clk 0:01:12]} 33. gxf7+ {[%clk 0:01:01]}  Kh7 {[%clk 0:01:11]} 34. R7d6 {[%clk 0:00:53]}  Qe4+ {[%clk 0:01:10]} 35. Bd3 {[%clk 0:00:53]}  Qe5 {[%clk 0:01:10]} 36. Rxf6 {[%clk 0:00:51]}  Qxf6 {[%clk 0:01:08]} 37. Bc4 {[%clk 0:00:51]}  Rxf7 {[%clk 0:01:08]} 0-1


[Site "https://www.chess.com"]

[Event "Titled Tuesday Blitz September 27 Early 2022"]
[White "Rosenberg, Evan S"]
[Black "Rostomyan, Mikayel"]
[WhiteFideId "2019299"]
[BlackFideId "13313754"]
[WhiteElo "2384"]
[BlackElo "1426"]
[Result "0-1"]
[Round "10"]
[TimeControl "180+1"]
[Date "2022.09.27"]
[WhiteClock "0:01:06"]
[BlackClock "0:01:27"]

1. e4 {[%clk 0:03:00]}  c5 {[%clk 0:02:57]} 2. Nc3 {[%clk 0:02:59]}  Nc6 {[%clk 0:02:57]} 3. f4 {[%clk 0:03:00]}  e6 {[%clk 0:02:53]} 4. Nf3 {[%clk 0:03:00]}  Nge7 {[%clk 0:02:53]} 5. e5 {[%clk 0:02:58]}  Nf5 {[%clk 0:02:44]} 6. Ne4 {[%clk 0:02:41]}  b6 {[%clk 0:02:40]} 7. Bb5 {[%clk 0:02:24]}  Bb7 {[%clk 0:02:38]} 8. c3 {[%clk 0:02:19]}  d5 {[%clk 0:02:35]} 9. exd6 {[%clk 0:02:12]}  Nxd6 {[%clk 0:02:34]} 10. Qa4 {[%clk 0:02:07]}  Nxb5 {[%clk 0:02:28]} 11. Qxb5 {[%clk 0:02:08]}  a6 {[%clk 0:02:25]} 12. Qe2 {[%clk 0:02:04]}  Be7 {[%clk 0:02:23]} 13. O-O {[%clk 0:02:03]}  O-O {[%clk 0:02:17]} 14. Ne5 {[%clk 0:02:01]}  Qd5 {[%clk 0:01:59]} 15. Nxc6 {[%clk 0:01:34]}  Bxc6 {[%clk 0:01:52]} 16. d3 {[%clk 0:01:26]}  Rad8 {[%clk 0:01:50]} 17. Rf3 {[%clk 0:01:23]}  c4 {[%clk 0:01:41]} 18. Nf2 {[%clk 0:01:06]}  cxd3 {[%clk 0:01:27]} 19. Nxd3 {[%clk 0:01:06]}  Bb5 {[%clk 0:01:27]} 0-1


[Site "https://www.chess.com"]

[Event "Titled Tuesday Blitz September 27 Early 2022"]
[White "Sanchez Alvares, Kelvin Antonio"]
[Black "Kalajzic, Ivan"]
[WhiteFideId "3906680"]
[BlackFideId "14506378"]
[WhiteElo "2189"]
[BlackElo "2163"]
[Result "1-0"]
[Round "10"]
[TimeControl "180+1"]
[Date "2022.09.27"]
[WhiteClock "0:01:51"]
[BlackClock "0:01:01"]

1. e4 {[%clk 0:03:00]}  Nc6 {[%clk 0:02:59]} 2. d4 {[%clk 0:02:59]}  d5 {[%clk 0:02:59]} 3. e5 {[%clk 0:02:57]}  f6 {[%clk 0:02:58]} 4. exf6 {[%clk 0:02:56]}  Nxf6 {[%clk 0:02:57]} 5. Nf3 {[%clk 0:02:56]}  Bg4 {[%clk 0:02:57]} 6. c3 {[%clk 0:02:55]}  e5 {[%clk 0:02:55]} 7. dxe5 {[%clk 0:02:55]}  Nxe5 {[%clk 0:02:56]} 8. Be2 {[%clk 0:02:55]}  Bxf3 {[%clk 0:02:52]} 9. Bxf3 {[%clk 0:02:55]}  c6 {[%clk 0:02:53]} 10. O-O {[%clk 0:02:54]}  Bd6 {[%clk 0:02:53]} 11. Be2 {[%clk 0:02:51]}  O-O {[%clk 0:02:53]} 12. f4 {[%clk 0:02:51]}  Ng6 {[%clk 0:02:49]} 13. Bd3 {[%clk 0:02:49]}  Ne4 {[%clk 0:02:49]} 14. g3 {[%clk 0:02:41]}  Qb6+ {[%clk 0:02:44]} 15. Kg2 {[%clk 0:02:31]}  Rae8 {[%clk 0:02:37]} 16. Nd2 {[%clk 0:02:30]}  Nc5 {[%clk 0:01:45]} 17. Bc2 {[%clk 0:02:28]}  Nxf4+ {[%clk 0:01:11]} 18. gxf4 {[%clk 0:02:27]}  Bxf4 {[%clk 0:01:12]} 19. Nc4 {[%clk 0:02:14]}  Ne6 {[%clk 0:01:11]} 20. Nxb6 {[%clk 0:02:12]}  axb6 {[%clk 0:01:10]} 21. Bxf4 {[%clk 0:02:10]}  Nxf4+ {[%clk 0:01:10]} 22. Kh1 {[%clk 0:02:10]}  g5 {[%clk 0:01:04]} 23. Qg4 {[%clk 0:02:08]}  Re5 {[%clk 0:01:02]} 24. Rae1 {[%clk 0:02:06]}  h5 {[%clk 0:01:01]} 25. Rxe5 {[%clk 0:01:51]}  hxg4 {[%clk 0:01:01]} 26. Rxg5+ {[%clk 0:01:51]} 1-0


[Site "https://www.chess.com"]

[Event "Titled Tuesday Blitz September 27 Early 2022"]
[White "Saravana, Krishnan P."]
[Black "Quirke, Jeffrey"]
[WhiteFideId "5018382"]
[BlackFideId "2013029"]
[WhiteElo "2155"]
[BlackElo "2125"]
[Result "1-0"]
[Round "10"]
[TimeControl "180+1"]
[Date "2022.09.27"]
[WhiteClock "0:02:20"]
[BlackClock "0:00:56"]

1. Nf3 {[%clk 0:03:00]}  d5 {[%clk 0:02:59]} 2. g3 {[%clk 0:03:00]}  e6 {[%clk 0:02:56]} 3. Bg2 {[%clk 0:03:00]}  Nf6 {[%clk 0:02:57]} 4. O-O {[%clk 0:02:59]}  c5 {[%clk 0:02:57]} 5. c4 {[%clk 0:02:58]}  d4 {[%clk 0:02:56]} 6. d3 {[%clk 0:02:58]}  Nc6 {[%clk 0:02:56]} 7. a3 {[%clk 0:02:58]}  a5 {[%clk 0:02:55]} 8. e3 {[%clk 0:02:53]}  h6 {[%clk 0:02:53]} 9. exd4 {[%clk 0:02:53]}  cxd4 {[%clk 0:02:54]} 10. Nbd2 {[%clk 0:02:54]}  Bd6 {[%clk 0:02:53]} 11. Rb1 {[%clk 0:02:54]}  O-O {[%clk 0:02:52]} 12. Re1 {[%clk 0:02:45]}  Re8 {[%clk 0:02:52]} 13. Qc2 {[%clk 0:02:41]}  Nd7 {[%clk 0:02:23]} 14. Ne4 {[%clk 0:02:39]}  Bf8 {[%clk 0:02:19]} 15. c5 {[%clk 0:02:39]}  f5 {[%clk 0:02:09]} 16. Nd6 {[%clk 0:02:38]}  Bxd6 {[%clk 0:02:09]} 17. cxd6 {[%clk 0:02:39]}  Nf6 {[%clk 0:02:06]} 18. Bf4 {[%clk 0:02:35]}  Nd5 {[%clk 0:01:59]} 19. Be5 {[%clk 0:02:29]}  Nxe5 {[%clk 0:01:53]} 20. Rxe5 {[%clk 0:02:27]}  Qxd6 {[%clk 0:01:49]} 21. Rbe1 {[%clk 0:02:27]}  Bd7 {[%clk 0:01:45]} 22. Nxd4 {[%clk 0:02:26]}  Rac8 {[%clk 0:01:24]} 23. Qb3 {[%clk 0:02:24]}  Nf4 {[%clk 0:00:56]} 24. Nxf5 {[%clk 0:02:20]} 1-0


[Site "https://www.chess.com"]